[Event "Titled Tuesday Blitz March 22 Early 2022"]
[White "Budrewicz, Krzysztof"]
[Black "Chigaev, Maksim"]
[WhiteFideId "1127950"]
[BlackFideId "4108116"]
[WhiteElo "2248"]
[BlackElo "2502"]
[Result "1-0"]
[Round "01"]
[TimeControl "180+1"]
[Date "2022.03.22"]
[WhiteClock "0:00:07"]
[BlackClock "0:00:07"]

1. d4 {[%clk 0:02:49]}  Nf6 {[%clk 0:02:59]} 2. c4 {[%clk 0:02:47]}  g6 {[%clk 0:02:58]} 3. Nc3 {[%clk 0:02:46]}  d5 {[%clk 0:02:59]} 4. Nf3 {[%clk 0:02:46]}  Bg7 {[%clk 0:02:58]} 5. Bf4 {[%clk 0:02:45]}  O-O {[%clk 0:02:56]} 6. e3 {[%clk 0:02:45]}  c5 {[%clk 0:02:55]} 7. dxc5 {[%clk 0:02:46]}  Qa5 {[%clk 0:02:50]} 8. cxd5 {[%clk 0:02:42]}  Ne4 {[%clk 0:02:41]} 9. Rc1 {[%clk 0:02:42]}  Nxc3 {[%clk 0:02:36]} 10. Qd2 {[%clk 0:02:42]}  Nd7 {[%clk 0:02:27]} 11. bxc3 {[%clk 0:02:38]}  Nxc5 {[%clk 0:02:27]} 12. c4 {[%clk 0:02:31]}  Qa3 {[%clk 0:02:21]} 13. Nd4 {[%clk 0:02:27]}  Bd7 {[%clk 0:02:16]} 14. Be2 {[%clk 0:02:25]}  Rac8 {[%clk 0:02:01]} 15. O-O {[%clk 0:02:24]}  Rfd8 {[%clk 0:02:01]} 16. Rfd1 {[%clk 0:02:23]}  h5 {[%clk 0:01:52]} 17. h3 {[%clk 0:02:22]}  Ba4 {[%clk 0:01:44]} 18. Re1 {[%clk 0:02:19]}  e5 {[%clk 0:01:41]} 19. dxe6 {[%clk 0:02:13]}  Nxe6 {[%clk 0:01:41]} 20. Bg3 {[%clk 0:01:42]}  Nxd4 {[%clk 0:01:40]} 21. exd4 {[%clk 0:01:42]}  Bxd4 {[%clk 0:01:36]} 22. Qf4 {[%clk 0:01:40]}  Bg7 {[%clk 0:00:54]} 23. Bf3 {[%clk 0:01:36]}  Bc6 {[%clk 0:00:54]} 24. Bxc6 {[%clk 0:01:31]}  Rxc6 {[%clk 0:00:55]} 25. Rc2 {[%clk 0:01:26]}  Qd3 {[%clk 0:00:50]} 26. Rce2 {[%clk 0:01:25]}  Qxc4 {[%clk 0:00:43]} 27. Re8+ {[%clk 0:01:19]}  Rxe8 {[%clk 0:00:43]} 28. Rxe8+ {[%clk 0:01:19]}  Kh7 {[%clk 0:00:44]} 29. Qxc4 {[%clk 0:01:15]}  Rxc4 {[%clk 0:00:45]} 30. Re7 {[%clk 0:01:16]}  h4 {[%clk 0:00:41]} 31. Bb8 {[%clk 0:01:13]}  Bd4 {[%clk 0:00:11]} 32. Rxf7+ {[%clk 0:01:07]}  Kg8 {[%clk 0:00:11]} 33. Rxb7 {[%clk 0:01:07]}  Rc1+ {[%clk 0:00:12]} 34. Kh2 {[%clk 0:01:07]}  Bxf2 {[%clk 0:00:13]} 35. g4 {[%clk 0:00:57]}  Rc2 {[%clk 0:00:12]} 36. a3 {[%clk 0:00:33]}  Ra2 {[%clk 0:00:10]} 37. Kh1 {[%clk 0:00:15]}  Rxa3 {[%clk 0:00:09]} 38. Kg2 {[%clk 0:00:16]}  Bd4 {[%clk 0:00:06]} 39. Bf4 {[%clk 0:00:13]}  a5 {[%clk 0:00:05]} 40. Rd7 {[%clk 0:00:12]}  Bc5 {[%clk 0:00:05]} 41. Rc7 {[%clk 0:00:11]}  Be3 {[%clk 0:00:04]} 42. Bxe3 {[%clk 0:00:10]}  Rxe3 {[%clk 0:00:05]} 43. Ra7 {[%clk 0:00:10]}  Rg3+ {[%clk 0:00:05]} 44. Kh2 {[%clk 0:00:11]}  Ra3 {[%clk 0:00:05]} 45. g5 {[%clk 0:00:10]}  a4 {[%clk 0:00:05]} 46. Kg2 {[%clk 0:00:08]}  Kf8 {[%clk 0:00:05]} 47. Kh2 {[%clk 0:00:08]}  Kg8 {[%clk 0:00:05]} 48. Kg2 {[%clk 0:00:09]}  Rg3+ {[%clk 0:00:06]} 49. Kh2 {[%clk 0:00:09]}  a3 {[%clk 0:00:07]} 50. Ra4 {[%clk 0:00:09]}  Rb3 {[%clk 0:00:05]} 51. Rxh4 {[%clk 0:00:07]}  Rb2+ {[%clk 0:00:05]} 52. Kg3 {[%clk 0:00:07]}  Rb3+ {[%clk 0:00:05]} 53. Kh2 {[%clk 0:00:07]}  a2 {[%clk 0:00:05]} 54. Ra4 {[%clk 0:00:07]}  Rb2+ {[%clk 0:00:06]} 55. Kg3 {[%clk 0:00:07]}  Kf7 {[%clk 0:00:07]} 56. h4 {[%clk 0:00:07]}  Ke6 {[%clk 0:00:07]} 57. Ra5 {[%clk 0:00:07]}  Kd6 {[%clk 0:00:07]} 58. h5 {[%clk 0:00:08]}  gxh5 {[%clk 0:00:07]} 59. g6 {[%clk 0:00:08]}  Ke6 {[%clk 0:00:08]} 60. Kh4 {[%clk 0:00:07]}  Kf6 {[%clk 0:00:08]} 61. Ra6+ {[%clk 0:00:07]}  Kf5 {[%clk 0:00:08]} 62. g7 {[%clk 0:00:07]}  Rh2+ {[%clk 0:00:06]} 63. Kg3 {[%clk 0:00:07]}  Rh1 {[%clk 0:00:06]} 64. Kg2 {[%clk 0:00:07]}  Rh4 {[%clk 0:00:06]} 65. g8=Q {[%clk 0:00:07]}  Rg4+ {[%clk 0:00:07]} 66. Qxg4+ {[%clk 0:00:07]}  Kxg4 {[%clk 0:00:07]} 1-0


[Site "https://www.chess.com"]

[Event "Titled Tuesday Blitz March 22 Early 2022"]
[White "Chen, Qi b"]
[Black "Lakshmi C"]
[WhiteFideId "8614733"]
[BlackFideId "25035347"]
[WhiteElo "2432"]
[BlackElo "1775"]
[Result "1-0"]
[Round "01"]
[TimeControl "180+1"]
[Date "2022.03.22"]
[WhiteClock "0:00:10"]
[BlackClock "0:00:36"]

1. e4 {[%clk 0:03:00]}  c5 {[%clk 0:02:58]} 2. Nf3 {[%clk 0:03:00]}  d6 {[%clk 0:02:53]} 3. d4 {[%clk 0:03:00]}  cxd4 {[%clk 0:02:53]} 4. Nxd4 {[%clk 0:03:01]}  Nf6 {[%clk 0:02:54]} 5. Nc3 {[%clk 0:03:02]}  g6 {[%clk 0:02:27]} 6. g3 {[%clk 0:02:59]}  Bg7 {[%clk 0:02:26]} 7. Bg2 {[%clk 0:02:58]}  O-O {[%clk 0:02:19]} 8. O-O {[%clk 0:02:58]}  Nc6 {[%clk 0:02:19]} 9. Nde2 {[%clk 0:02:57]}  Bd7 {[%clk 0:02:17]} 10. h3 {[%clk 0:02:49]}  Rc8 {[%clk 0:02:13]} 11. Be3 {[%clk 0:02:48]}  b6 {[%clk 0:02:09]} 12. Rc1 {[%clk 0:02:33]}  Ne5 {[%clk 0:02:06]} 13. b3 {[%clk 0:02:30]}  b5 {[%clk 0:01:59]} 14. Bxa7 {[%clk 0:01:59]}  b4 {[%clk 0:01:51]} 15. Nd5 {[%clk 0:01:57]}  Nxd5 {[%clk 0:01:46]} 16. exd5 {[%clk 0:01:56]}  Qa5 {[%clk 0:01:44]} 17. Bd4 {[%clk 0:01:54]}  Qxa2 {[%clk 0:01:42]} 18. f4 {[%clk 0:01:48]}  Nc4 {[%clk 0:01:27]} 19. bxc4 {[%clk 0:01:25]}  Rxc4 {[%clk 0:01:20]} 20. Bxg7 {[%clk 0:01:20]}  Kxg7 {[%clk 0:01:19]} 21. Ra1 {[%clk 0:00:47]}  Qxc2 {[%clk 0:01:12]} 22. Qxc2 {[%clk 0:00:46]}  Rxc2 {[%clk 0:01:12]} 23. Nd4 {[%clk 0:00:47]}  Rd2 {[%clk 0:01:11]} 24. Nc6 {[%clk 0:00:41]}  b3 {[%clk 0:01:03]} 25. Rab1 {[%clk 0:00:37]}  b2 {[%clk 0:01:02]} 26. Rf2 {[%clk 0:00:36]}  Rd3 {[%clk 0:00:57]} 27. Rbxb2 {[%clk 0:00:33]}  Rxg3 {[%clk 0:00:57]} 28. Nxe7 {[%clk 0:00:15]}  Bxh3 {[%clk 0:00:53]} 29. Kh2 {[%clk 0:00:15]}  Rxg2+ {[%clk 0:00:53]} 30. Rxg2 {[%clk 0:00:15]}  Bxg2 {[%clk 0:00:53]} 31. Kxg2 {[%clk 0:00:16]}  Kf6 {[%clk 0:00:54]} 32. Nc6 {[%clk 0:00:15]}  Kf5 {[%clk 0:00:54]} 33. Kf3 {[%clk 0:00:15]}  Ra8 {[%clk 0:00:52]} 34. Nd4+ {[%clk 0:00:14]}  Kf6 {[%clk 0:00:51]} 35. Rb6 {[%clk 0:00:14]}  Ra3+ {[%clk 0:00:50]} 36. Ke4 {[%clk 0:00:13]}  Ke7 {[%clk 0:00:48]} 37. f5 {[%clk 0:00:13]}  gxf5+ {[%clk 0:00:48]} 38. Nxf5+ {[%clk 0:00:13]}  Kd7 {[%clk 0:00:47]} 39. Rxd6+ {[%clk 0:00:13]}  Kc7 {[%clk 0:00:47]} 40. Rf6 {[%clk 0:00:13]}  Ra1 {[%clk 0:00:46]} 41. Rxf7+ {[%clk 0:00:13]}  Kd8 {[%clk 0:00:46]} 42. Ke5 {[%clk 0:00:13]}  h5 {[%clk 0:00:42]} 43. Ke6 {[%clk 0:00:12]}  Re1+ {[%clk 0:00:41]} 44. Kd6 {[%clk 0:00:12]}  Kc8 {[%clk 0:00:38]} 45. Rh7 {[%clk 0:00:10]}  Re7 {[%clk 0:00:36]} 46. Nxe7+ {[%clk 0:00:10]} 1-0


[Site "https://www.chess.com"]

[Event "Titled Tuesday Blitz March 22 Early 2022"]
[White "Chincholimath, Halsagar"]
[Black "Jeet, Jain"]
[WhiteFideId "5022487"]
[BlackFideId "5073022"]
[WhiteElo "1737"]
[BlackElo "2085"]
[Result "0-1"]
[Round "01"]
[TimeControl "180+1"]
[Date "2022.03.22"]
[WhiteClock "0:00:17"]
[BlackClock "0:00:48"]

1. e4 {[%clk 0:02:59]}  e5 {[%clk 0:02:56]} 2. Nf3 {[%clk 0:02:58]}  Nc6 {[%clk 0:02:51]} 3. Nc3 {[%clk 0:02:58]}  Nf6 {[%clk 0:02:46]} 4. d4 {[%clk 0:02:57]}  exd4 {[%clk 0:02:41]} 5. Nxd4 {[%clk 0:02:58]}  Bb4 {[%clk 0:02:41]} 6. Nxc6 {[%clk 0:02:57]}  bxc6 {[%clk 0:02:39]} 7. Bd3 {[%clk 0:02:54]}  d5 {[%clk 0:02:35]} 8. Bd2 {[%clk 0:02:54]}  O-O {[%clk 0:02:33]} 9. O-O {[%clk 0:02:51]}  Rb8 {[%clk 0:02:29]} 10. a3 {[%clk 0:02:45]}  Bd6 {[%clk 0:02:29]} 11. Bg5 {[%clk 0:02:41]}  h6 {[%clk 0:02:23]} 12. Bh4 {[%clk 0:02:40]}  Rxb2 {[%clk 0:02:14]} 13. f4 {[%clk 0:02:34]}  Be7 {[%clk 0:02:09]} 14. e5 {[%clk 0:02:00]}  Ne8 {[%clk 0:02:07]} 15. Bf2 {[%clk 0:01:54]}  f5 {[%clk 0:02:05]} 16. Qh5 {[%clk 0:01:49]}  Rb8 {[%clk 0:01:50]} 17. Ne2 {[%clk 0:01:48]}  c5 {[%clk 0:01:46]} 18. Ng3 {[%clk 0:01:47]}  Qd7 {[%clk 0:01:43]} 19. Rfe1 {[%clk 0:01:35]}  Qe6 {[%clk 0:01:41]} 20. c3 {[%clk 0:01:18]}  Qf7 {[%clk 0:01:22]} 21. Qf3 {[%clk 0:01:16]}  Be6 {[%clk 0:01:20]} 22. Rab1 {[%clk 0:01:15]}  Rb6 {[%clk 0:01:15]} 23. a4 {[%clk 0:01:13]}  a5 {[%clk 0:01:15]} 24. Rb5 {[%clk 0:01:11]}  Rxb5 {[%clk 0:01:13]} 25. axb5 {[%clk 0:01:07]}  g5 {[%clk 0:01:12]} 26. fxg5 {[%clk 0:01:00]}  hxg5 {[%clk 0:01:11]} 27. Qh5 {[%clk 0:00:44]}  Ng7 {[%clk 0:01:09]} 28. Qxf7+ {[%clk 0:00:43]}  Rxf7 {[%clk 0:01:07]} 29. Ra1 {[%clk 0:00:43]}  f4 {[%clk 0:01:02]} 30. Nf1 {[%clk 0:00:37]}  Bf5 {[%clk 0:00:59]} 31. Bxf5 {[%clk 0:00:35]}  Rxf5 {[%clk 0:01:00]} 32. Rxa5 {[%clk 0:00:35]}  Rxe5 {[%clk 0:01:00]} 33. Ra7 {[%clk 0:00:34]}  Bd6 {[%clk 0:00:58]} 34. Ra8+ {[%clk 0:00:27]}  Kf7 {[%clk 0:00:54]} 35. Ra7 {[%clk 0:00:27]}  Kg6 {[%clk 0:00:54]} 36. h3 {[%clk 0:00:25]}  Nf5 {[%clk 0:00:53]} 37. Nh2 {[%clk 0:00:24]}  Re2 {[%clk 0:00:52]} 38. Nf3 {[%clk 0:00:24]}  Rb2 {[%clk 0:00:50]} 39. Ra5 {[%clk 0:00:23]}  Ne3 {[%clk 0:00:49]} 40. Kh2 {[%clk 0:00:17]}  Rxf2 {[%clk 0:00:48]} 0-1


[Site "https://www.chess.com"]

[Event "Titled Tuesday Blitz March 22 Early 2022"]
[White "Cramling Bellon, Anna"]
[Black "Ianov, Viktor"]
[WhiteFideId "32009232"]
[BlackFideId "14102730"]
[WhiteElo "1905"]
[BlackElo "2161"]
[Result "0-1"]
[Round "01"]
[TimeControl "180+1"]
[Date "2022.03.22"]
[WhiteClock "0:00:25"]
[BlackClock "0:02:00"]

1. d4 {[%clk 0:02:54]}  d6 {[%clk 0:02:59]} 2. c4 {[%clk 0:02:54]}  g6 {[%clk 0:02:59]} 3. Nc3 {[%clk 0:02:54]}  Bg7 {[%clk 0:02:59]} 4. e4 {[%clk 0:02:52]}  e5 {[%clk 0:02:59]} 5. d5 {[%clk 0:02:51]}  Nd7 {[%clk 0:02:59]} 6. f4 {[%clk 0:02:32]}  exf4 {[%clk 0:02:57]} 7. Bxf4 {[%clk 0:02:29]}  Ngf6 {[%clk 0:02:57]} 8. Nf3 {[%clk 0:02:29]}  Ng4 {[%clk 0:02:55]} 9. Be2 {[%clk 0:02:15]}  O-O {[%clk 0:02:54]} 10. O-O {[%clk 0:02:13]}  Nge5 {[%clk 0:02:54]} 11. Nd4 {[%clk 0:02:11]}  a5 {[%clk 0:02:49]} 12. a3 {[%clk 0:02:03]}  c6 {[%clk 0:02:44]} 13. Nf3 {[%clk 0:01:46]}  Re8 {[%clk 0:02:35]} 14. dxc6 {[%clk 0:01:44]}  bxc6 {[%clk 0:02:28]} 15. Qxd6 {[%clk 0:01:42]}  Qb6+ {[%clk 0:02:27]} 16. Kh1 {[%clk 0:01:31]}  Qxb2 {[%clk 0:02:26]} 17. Nxe5 {[%clk 0:01:14]}  Nxe5 {[%clk 0:02:23]} 18. Bxe5 {[%clk 0:01:10]}  Bxe5 {[%clk 0:02:22]} 19. Qxc6 {[%clk 0:01:10]}  Be6 {[%clk 0:02:18]} 20. Nd5 {[%clk 0:00:55]}  Qxe2 {[%clk 0:02:16]} 21. Ne7+ {[%clk 0:00:27]}  Kg7 {[%clk 0:02:08]} 22. Qc5 {[%clk 0:00:25]}  Bxa1 {[%clk 0:02:00]} 0-1


[Site "https://www.chess.com"]

[Event "Titled Tuesday Blitz March 22 Early 2022"]
[White "Dixit, Nikhil"]
[Black "Neiksans, Arturs"]
[WhiteFideId "5059534"]
[BlackFideId "11601388"]
[WhiteElo "2223"]
[BlackElo "2447"]
[Result "0-1"]
[Round "01"]
[TimeControl "180+1"]
[Date "2022.03.22"]
[WhiteClock "0:00:06"]
[BlackClock "0:00:26"]

1. e4 {[%clk 0:02:56]}  c5 {[%clk 0:02:59]} 2. Nf3 {[%clk 0:02:55]}  e6 {[%clk 0:02:59]} 3. b3 {[%clk 0:02:47]}  b6 {[%clk 0:02:58]} 4. Bb2 {[%clk 0:02:39]}  Bb7 {[%clk 0:02:58]} 5. Nc3 {[%clk 0:02:40]}  Nc6 {[%clk 0:02:53]} 6. Qe2 {[%clk 0:02:29]}  Nd4 {[%clk 0:02:43]} 7. Qd3 {[%clk 0:02:28]}  Nxf3+ {[%clk 0:02:41]} 8. gxf3 {[%clk 0:02:23]}  Ne7 {[%clk 0:02:39]} 9. O-O-O {[%clk 0:02:19]}  Nc6 {[%clk 0:02:36]} 10. f4 {[%clk 0:02:12]}  a6 {[%clk 0:02:34]} 11. Bg2 {[%clk 0:02:09]}  b5 {[%clk 0:02:35]} 12. e5 {[%clk 0:02:00]}  Qa5 {[%clk 0:02:31]} 13. Kb1 {[%clk 0:01:57]}  c4 {[%clk 0:02:30]} 14. Qe3 {[%clk 0:01:46]}  Rb8 {[%clk 0:02:15]} 15. d4 {[%clk 0:01:36]}  Bb4 {[%clk 0:02:07]} 16. Ne4 {[%clk 0:01:34]}  Ne7 {[%clk 0:02:03]} 17. c3 {[%clk 0:01:15]}  Nd5 {[%clk 0:02:03]} 18. Qc1 {[%clk 0:01:13]}  cxb3 {[%clk 0:01:57]} 19. axb3 {[%clk 0:01:12]}  Be7 {[%clk 0:01:51]} 20. b4 {[%clk 0:01:08]}  Qb6 {[%clk 0:01:44]} 21. Nc5 {[%clk 0:00:51]}  Bc6 {[%clk 0:01:33]} 22. Rhg1 {[%clk 0:00:38]}  g6 {[%clk 0:01:31]} 23. Nb3 {[%clk 0:00:35]}  Rc8 {[%clk 0:01:23]} 24. Qd2 {[%clk 0:00:32]}  Ba8 {[%clk 0:01:21]} 25. Rc1 {[%clk 0:00:31]}  Rc4 {[%clk 0:01:04]} 26. Bf1 {[%clk 0:00:30]}  Qc7 {[%clk 0:00:58]} 27. Bxc4 {[%clk 0:00:28]}  Qxc4 {[%clk 0:00:58]} 28. Na5 {[%clk 0:00:28]}  Qc7 {[%clk 0:00:58]} 29. c4 {[%clk 0:00:28]}  bxc4 {[%clk 0:00:57]} 30. Rxc4 {[%clk 0:00:28]}  Qb8 {[%clk 0:00:57]} 31. Rgc1 {[%clk 0:00:13]}  O-O {[%clk 0:00:57]} 32. Ba3 {[%clk 0:00:12]}  Nb6 {[%clk 0:00:56]} 33. R4c2 {[%clk 0:00:11]}  Be4 {[%clk 0:00:56]} 34. Ka2 {[%clk 0:00:10]}  Nd5 {[%clk 0:00:56]} 35. Rc4 {[%clk 0:00:08]}  f6 {[%clk 0:00:56]} 36. exf6 {[%clk 0:00:08]}  Bxf6 {[%clk 0:00:55]} 37. Nb3 {[%clk 0:00:09]}  Nxf4 {[%clk 0:00:51]} 38. Nc5 {[%clk 0:00:09]}  Bc6 {[%clk 0:00:49]} 39. Kb2 {[%clk 0:00:09]}  Nd5 {[%clk 0:00:47]} 40. Nxe6 {[%clk 0:00:08]}  dxe6 {[%clk 0:00:42]} 41. Rxc6 {[%clk 0:00:08]}  a5 {[%clk 0:00:43]} 42. Kb1 {[%clk 0:00:07]}  axb4 {[%clk 0:00:41]} 43. Bb2 {[%clk 0:00:07]}  Nc3+ {[%clk 0:00:40]} 44. Kc2 {[%clk 0:00:05]}  Qb5 {[%clk 0:00:39]} 45. Rc7 {[%clk 0:00:04]}  Bd8 {[%clk 0:00:33]} 46. Rc8 {[%clk 0:00:04]}  Qf5+ {[%clk 0:00:30]} 47. Kb3 {[%clk 0:00:04]}  Qd5+ {[%clk 0:00:29]} 48. Kc2 {[%clk 0:00:04]}  b3+ {[%clk 0:00:29]} 49. Kxc3 {[%clk 0:00:05]}  Ba5+ {[%clk 0:00:29]} 50. Kd3 {[%clk 0:00:05]}  Bxd2 {[%clk 0:00:27]} 51. Rxf8+ {[%clk 0:00:05]}  Kxf8 {[%clk 0:00:28]} 52. Kxd2 {[%clk 0:00:06]}  Qf3 {[%clk 0:00:26]} 53. Rc3 {[%clk 0:00:06]}  Qxf2+ {[%clk 0:00:26]} 54. Kc1 {[%clk 0:00:06]}  Qe1# {[%clk 0:00:26]} 0-1


[Site "https://www.chess.com"]

[Event "Titled Tuesday Blitz March 22 Early 2022"]
[White "Donchenko, Alexander"]
[Black "Hoffmann, Asa"]
[WhiteFideId "24603295"]
[BlackFideId "2001470"]
[WhiteElo "2539"]
[BlackElo "2117"]
[Result "1-0"]
[Round "01"]
[TimeControl "180+1"]
[Date "2022.03.22"]
[WhiteClock "0:00:27"]
[BlackClock "0:00:18"]

1. d4 {[%clk 0:03:00]}  Nf6 {[%clk 0:02:55]} 2. c4 {[%clk 0:03:01]}  c5 {[%clk 0:02:54]} 3. Nf3 {[%clk 0:03:00]}  cxd4 {[%clk 0:02:52]} 4. Nxd4 {[%clk 0:03:01]}  e5 {[%clk 0:02:51]} 5. Nb5 {[%clk 0:03:01]}  d5 {[%clk 0:02:51]} 6. cxd5 {[%clk 0:03:02]}  Bb4+ {[%clk 0:02:50]} 7. Bd2 {[%clk 0:02:52]}  Bc5 {[%clk 0:02:49]} 8. e3 {[%clk 0:02:42]}  O-O {[%clk 0:02:41]} 9. Bc4 {[%clk 0:02:35]}  a6 {[%clk 0:02:37]} 10. N5c3 {[%clk 0:02:35]}  b5 {[%clk 0:02:37]} 11. Bb3 {[%clk 0:02:35]}  Bf5 {[%clk 0:02:34]} 12. Qe2 {[%clk 0:02:27]}  e4 {[%clk 0:02:28]} 13. O-O {[%clk 0:02:14]}  Nbd7 {[%clk 0:02:28]} 14. Rc1 {[%clk 0:02:09]}  Ne5 {[%clk 0:02:25]} 15. Be1 {[%clk 0:01:55]}  Bg4 {[%clk 0:02:21]} 16. Qf1 {[%clk 0:01:53]}  Nd3 {[%clk 0:02:01]} 17. Rc2 {[%clk 0:01:52]}  Qd7 {[%clk 0:01:44]} 18. Nxe4 {[%clk 0:01:49]}  Nxe4 {[%clk 0:01:27]} 19. Qxd3 {[%clk 0:01:49]}  Bf5 {[%clk 0:01:26]} 20. Qe2 {[%clk 0:01:45]}  Rac8 {[%clk 0:01:23]} 21. Nd2 {[%clk 0:01:36]}  Ng5 {[%clk 0:01:17]} 22. Rcc1 {[%clk 0:01:15]}  Rfe8 {[%clk 0:01:16]} 23. a4 {[%clk 0:01:13]}  Bg4 {[%clk 0:01:15]} 24. Qf1 {[%clk 0:01:12]}  Qf5 {[%clk 0:01:06]} 25. axb5 {[%clk 0:01:11]}  axb5 {[%clk 0:01:05]} 26. Bd1 {[%clk 0:01:08]}  Bd6 {[%clk 0:01:01]} 27. Bxg4 {[%clk 0:01:03]}  Qxg4 {[%clk 0:01:01]} 28. Rxc8 {[%clk 0:01:00]}  Rxc8 {[%clk 0:01:00]} 29. f3 {[%clk 0:00:59]}  Qf5 {[%clk 0:00:55]} 30. e4 {[%clk 0:00:57]}  Qf4 {[%clk 0:00:54]} 31. g3 {[%clk 0:00:46]}  Bc5+ {[%clk 0:00:52]} 32. Kh1 {[%clk 0:00:44]}  Qe3 {[%clk 0:00:50]} 33. Rc1 {[%clk 0:00:42]}  h5 {[%clk 0:00:41]} 34. b4 {[%clk 0:00:38]}  h4 {[%clk 0:00:31]} 35. Rxc5 {[%clk 0:00:37]}  Rxc5 {[%clk 0:00:29]} 36. bxc5 {[%clk 0:00:38]}  h3 {[%clk 0:00:27]} 37. c6 {[%clk 0:00:36]}  b4 {[%clk 0:00:26]} 38. c7 {[%clk 0:00:34]}  Qc5 {[%clk 0:00:26]} 39. d6 {[%clk 0:00:33]}  Ne6 {[%clk 0:00:24]} 40. Qxh3 {[%clk 0:00:32]}  b3 {[%clk 0:00:21]} 41. Nxb3 {[%clk 0:00:32]}  Qc6 {[%clk 0:00:18]} 42. Bf2 {[%clk 0:00:27]} 1-0


[Site "https://www.chess.com"]

[Event "Titled Tuesday Blitz March 22 Early 2022"]
[White "Dreev, Aleksey"]
[Black "Vusatiuk, Vladimir"]
[WhiteFideId "4100107"]
[BlackFideId "14118610"]
[WhiteElo "2625"]
[BlackElo "2157"]
[Result "1-0"]
[Round "01"]
[TimeControl "180+1"]
[Date "2022.03.22"]
[WhiteClock "0:01:04"]
[BlackClock "0:00:03"]

1. d4 {[%clk 0:03:00]}  Nf6 {[%clk 0:02:57]} 2. c4 {[%clk 0:02:57]}  e6 {[%clk 0:02:57]} 3. Nc3 {[%clk 0:02:57]}  Bb4 {[%clk 0:02:55]} 4. Qc2 {[%clk 0:02:57]}  O-O {[%clk 0:02:55]} 5. a3 {[%clk 0:02:57]}  Bxc3+ {[%clk 0:02:55]} 6. Qxc3 {[%clk 0:02:58]}  b6 {[%clk 0:02:46]} 7. Bg5 {[%clk 0:02:57]}  Bb7 {[%clk 0:02:42]} 8. e3 {[%clk 0:02:58]}  h6 {[%clk 0:02:30]} 9. Bh4 {[%clk 0:02:57]}  d6 {[%clk 0:02:27]} 10. Ne2 {[%clk 0:02:57]}  Nbd7 {[%clk 0:02:26]} 11. Qd3 {[%clk 0:02:57]}  e5 {[%clk 0:01:58]} 12. Nc3 {[%clk 0:02:55]}  exd4 {[%clk 0:01:39]} 13. Qxd4 {[%clk 0:02:54]}  Ne5 {[%clk 0:01:40]} 14. O-O-O {[%clk 0:02:41]}  Ng6 {[%clk 0:01:25]} 15. Bxf6 {[%clk 0:02:40]}  Qxf6 {[%clk 0:01:26]} 16. Qxf6 {[%clk 0:02:40]}  gxf6 {[%clk 0:01:27]} 17. Nb5 {[%clk 0:02:22]}  Rfc8 {[%clk 0:01:23]} 18. Bd3 {[%clk 0:02:16]}  a6 {[%clk 0:00:56]} 19. Nd4 {[%clk 0:02:16]}  Ne5 {[%clk 0:00:55]} 20. Be2 {[%clk 0:02:11]}  Kh7 {[%clk 0:00:38]} 21. f3 {[%clk 0:02:00]}  Rg8 {[%clk 0:00:36]} 22. Rhg1 {[%clk 0:01:59]}  Rae8 {[%clk 0:00:33]} 23. b3 {[%clk 0:01:46]}  Nc6 {[%clk 0:00:17]} 24. Nc2 {[%clk 0:01:42]}  Bc8 {[%clk 0:00:14]} 25. Kd2 {[%clk 0:01:30]}  Bf5 {[%clk 0:00:13]} 26. e4 {[%clk 0:01:30]}  Bd7 {[%clk 0:00:11]} 27. Ne3 {[%clk 0:01:31]}  Ne7 {[%clk 0:00:07]} 28. Bd3 {[%clk 0:01:31]}  Kh8 {[%clk 0:00:07]} 29. g3 {[%clk 0:01:28]}  Be6 {[%clk 0:00:08]} 30. f4 {[%clk 0:01:27]}  a5 {[%clk 0:00:08]} 31. Kc3 {[%clk 0:01:27]}  Nc6 {[%clk 0:00:08]} 32. Rde1 {[%clk 0:01:26]}  Rg7 {[%clk 0:00:09]} 33. Nd5 {[%clk 0:01:24]}  Bxd5 {[%clk 0:00:09]} 34. exd5 {[%clk 0:01:24]}  Rxe1 {[%clk 0:00:07]} 35. Rxe1 {[%clk 0:01:23]}  Nd8 {[%clk 0:00:08]} 36. Re7 {[%clk 0:01:23]}  c6 {[%clk 0:00:06]} 37. Rd7 {[%clk 0:01:22]}  Rg8 {[%clk 0:00:05]} 38. Rxd6 {[%clk 0:01:22]}  cxd5 {[%clk 0:00:05]} 39. cxd5 {[%clk 0:01:21]}  Nb7 {[%clk 0:00:04]} 40. Rxb6 {[%clk 0:01:18]}  Nc5 {[%clk 0:00:05]} 41. Kd4 {[%clk 0:01:13]}  Nxd3 {[%clk 0:00:03]} 42. Kxd3 {[%clk 0:01:13]}  Rc8 {[%clk 0:00:03]} 43. Rxf6 {[%clk 0:01:12]}  Kg7 {[%clk 0:00:04]} 44. Ra6 {[%clk 0:01:11]}  Rc1 {[%clk 0:00:05]} 45. Rxa5 {[%clk 0:01:11]}  Rh1 {[%clk 0:00:05]} 46. Kc4 {[%clk 0:01:07]}  Rxh2 {[%clk 0:00:04]} 47. d6 {[%clk 0:01:08]}  Rc2+ {[%clk 0:00:05]} 48. Kd3 {[%clk 0:01:06]}  Rc1 {[%clk 0:00:05]} 49. Rd5 {[%clk 0:01:06]}  Kf6 {[%clk 0:00:03]} 50. d7 {[%clk 0:01:06]}  Ke6 {[%clk 0:00:03]} 51. d8=Q {[%clk 0:01:04]}  Rd1+ {[%clk 0:00:03]} 52. Kc4 {[%clk 0:01:04]} 1-0


[Site "https://www.chess.com"]

[Event "Titled Tuesday Blitz March 22 Early 2022"]
[White "Dushyant Sharma"]
[Black "Golubka, Petro"]
[WhiteFideId "25065130"]
[BlackFideId "14114224"]
[WhiteElo "2105"]
[BlackElo "2346"]
[Result "1-0"]
[Round "01"]
[TimeControl "180+1"]
[Date "2022.03.22"]
[WhiteClock "0:00:16"]
[BlackClock "0:00:57"]

1. e4 {[%clk 0:03:00]}  g6 {[%clk 0:02:58]} 2. d4 {[%clk 0:03:01]}  Bg7 {[%clk 0:02:58]} 3. Nc3 {[%clk 0:02:58]}  c6 {[%clk 0:02:58]} 4. Be3 {[%clk 0:02:58]}  b5 {[%clk 0:02:57]} 5. Qd2 {[%clk 0:02:49]}  h6 {[%clk 0:02:52]} 6. O-O-O {[%clk 0:02:37]}  d6 {[%clk 0:02:46]} 7. f3 {[%clk 0:02:35]}  Nd7 {[%clk 0:02:40]} 8. h4 {[%clk 0:02:34]}  Bb7 {[%clk 0:02:39]} 9. Nh3 {[%clk 0:02:31]}  Ngf6 {[%clk 0:02:38]} 10. Be2 {[%clk 0:02:31]}  Qc7 {[%clk 0:02:37]} 11. g4 {[%clk 0:02:25]}  O-O-O {[%clk 0:02:37]} 12. g5 {[%clk 0:02:25]}  hxg5 {[%clk 0:02:36]} 13. hxg5 {[%clk 0:02:14]}  Nh5 {[%clk 0:02:36]} 14. Nf4 {[%clk 0:02:14]}  Nxf4 {[%clk 0:02:24]} 15. Bxf4 {[%clk 0:02:15]}  a6 {[%clk 0:02:24]} 16. Bg3 {[%clk 0:02:03]}  Kb8 {[%clk 0:02:12]} 17. f4 {[%clk 0:02:00]}  c5 {[%clk 0:02:10]} 18. Bf2 {[%clk 0:01:41]}  Nb6 {[%clk 0:01:53]} 19. f5 {[%clk 0:01:17]}  Rxh1 {[%clk 0:01:47]} 20. Rxh1 {[%clk 0:01:16]}  gxf5 {[%clk 0:01:48]} 21. dxc5 {[%clk 0:01:10]}  dxc5 {[%clk 0:01:47]} 22. Bg3 {[%clk 0:01:10]}  e5 {[%clk 0:01:39]} 23. Qe1 {[%clk 0:01:07]}  f4 {[%clk 0:01:37]} 24. Bf2 {[%clk 0:01:06]}  Bf8 {[%clk 0:01:35]} 25. Bf3 {[%clk 0:01:03]}  Nc4 {[%clk 0:01:30]} 26. Rh7 {[%clk 0:01:00]}  Rd7 {[%clk 0:01:28]} 27. Nd5 {[%clk 0:00:57]}  Bxd5 {[%clk 0:01:27]} 28. exd5 {[%clk 0:00:58]}  Ka7 {[%clk 0:01:27]} 29. b3 {[%clk 0:00:56]}  Nb6 {[%clk 0:01:26]} 30. g6 {[%clk 0:00:41]}  fxg6 {[%clk 0:01:25]} 31. Rh8 {[%clk 0:00:36]}  Bd6 {[%clk 0:01:24]} 32. b4 {[%clk 0:00:29]}  cxb4 {[%clk 0:01:21]} 33. Qg1 {[%clk 0:00:23]}  Kb7 {[%clk 0:01:13]} 34. Be4 {[%clk 0:00:20]}  Rd8 {[%clk 0:01:01]} 35. Bxb6 {[%clk 0:00:17]}  Rxh8 {[%clk 0:00:57]} 36. Bxc7 {[%clk 0:00:17]}  Kxc7 {[%clk 0:00:57]} 37. Qxg6 {[%clk 0:00:18]}  Rd8 {[%clk 0:00:57]} 38. Bf5 {[%clk 0:00:17]}  Re8 {[%clk 0:00:57]} 39. Qxe8 {[%clk 0:00:16]} 1-0


[Site "https://www.chess.com"]